fUSD/lending_fUSD_20250804
["ID","MTS","AMOUNT","RATE_DAILY","PERIOD"]
[377280249,1754316653567,-333.958153,0.00048476,14]
[377280251,1754316653577,-1688.40476257,0.0004849,2]
[377280253,1754316653587,-335.95879001,0.0004849,7]
[377280254,1754316653597,-170.80234972,0.00048496,30]
[377280256,1754316653607,-666.0,0.00048499,30]
[377280258,1754316653616,-300.0,0.00048499,30]
[377280259,1754316653626,-300.0,0.00048499,30]
[377280261,1754316653635,-300.0,0.00048499,30]
[377280262,1754316653644,-300.0,0.00048499,30]
[377280264,1754316653654,-300.0,0.00048499,30]
[377280266,1754316653664,-1000.0,0.00048499,120]
[377280267,1754316653674,-151.0,0.00048499,14]
[377280269,1754316653684,-266.506004,0.00048499,14]
[377280270,1754316653694,-266.506004,0.00048499,14]
[377280272,1754316653704,-162.713112,0.00048499,14]
[377280274,1754316653713,-162.713112,0.00048499,14]
[377280275,1754316653723,-1000.0,0.00048499,2]
[377280277,1754316653733,-1007.17980342,0.00048499,2]
[377280278,1754316653742,-251.73810858,0.000485,120]
[377280280,1754316653752,-2912674.08065535,0.000485,120]
[377280347,1754316654742,-28872.5,0.000485,120]
[377280348,1754316654754,-1650.0,0.000485,120]
[377280349,1754316654766,-2326.2079628,0.000485,120]
[377280350,1754316654777,-921.53052914,0.000485,120]
[377280353,1754316654804,-277.20494006,0.000485,120]
[377280355,1754316654816,-450.0,0.000485,120]
[377280357,1754316654827,-770.86243759,0.000485,120]
[377280361,1754316655671,-1000.0,0.00041323,30]
[377280364,1754316655681,-386.48,0.00041323,30]
[377280366,1754316655698,-613.52,0.00041323,30]
[377280368,1754316655708,-150.0,0.00045195,2]
[377280370,1754316655719,-625.6339776,0.00046059,2]
[377280372,1754316655731,-416.03518578,0.0004639,3]
[377280375,1754316655743,-200.0,0.0004639,3]
[377280377,1754316655755,-279.20087453,0.0004639,3]
[377280379,1754316655767,-431.42848765,0.0004639,3]
[377280381,1754316655778,-447.3913417,0.0004639,3]
[377280383,1754316655791,-150.0,0.00047056,7]
[377280385,1754316655802,-574386.79013266,0.000485,120]
[377280395,1754316655893,-124.57530912,0.000485,120]
[377280408,1754316656218,-649.65057616,0.00045999,45]
[377280409,1754316656238,-192.3,0.00043,120]
[377280410,1754316656248,-142.67323011,0.00045999,45]
[377280411,1754316658138,-1000.0,0.00041323,30]
[377280412,1754316658149,-1000.0,0.00041323,30]
[377280413,1754316658159,-1000.0,0.00041323,30]
[377280414,1754316658169,-1000.0,0.00041323,30]
[377280415,1754316658179,-1000.0,0.00041323,30]
[377280416,1754316658189,-739.97010935,0.00041323,30]
[377280417,1754316658201,-260.02989065,0.00041323,30]
[377280418,1754316658210,-461.97010935,0.00041323,30]
[377280419,1754316658222,-538.02989065,0.00041323,30]
[377280420,1754316658232,-371.81740975,0.00041323,30]
[377280421,1754316658243,-628.18259025,0.00041323,30]
[377280422,1754316658253,-138.96761035,0.00045328,2]
[377280423,1754316658264,-5723.76135537,0.00045328,2]
[377280683,1754317142797,286.347807,0.000321,120]
[377280691,1754317492830,2000.0,0.000321,30]
[377280692,1754317507796,12713.652193,0.00019,2]
[377280693,1754317507820,15000.0,0.00019,2]
[377280694,1754317507843,15000.0,0.00019,2]
[377280695,1754317507865,15000.0,0.00019,2]
[377280696,1754317507909,4678.73435447,0.00019,2]
[377280698,1754317550772,153.29,0.00013699,2]
[377280701,1754317593079,162.26516938,0.000321,120]
[377280702,1754317617962,2916.49761706,0.00015,14]
[377280704,1754317618940,1424.52,0.00024,5]
[377280706,1754317674211,5664.69285909,0.00013,15]
[377280707,1754317674237,15415.09138655,0.00013,15]
[377280710,1754317680003,33077.96861345,0.00019,2]
[377280711,1754317680031,50000.0,0.00019,2]
[377280712,1754317680057,11603.80746658,0.00019,2]
[377280721,1754317701213,33667.71563818,0.00012,30]
[377280725,1754317709730,611.54689524,0.0003,2]
[377280762,1754317717156,3609.78013141,0.0002421,2]
[377280763,1754317717186,5262.22081608,0.000241,2]
[377280764,1754317719750,6630.36030366,0.000151,2]
[377280779,1754317729133,400.0,0.0002739,2]
[377280789,1754317748192,-3992.23741131,0.0003,2]
[377280790,1754317748217,-153.29,0.00034247,2]
[377280792,1754317748240,-259.50936818,0.00034965,2]
[377280794,1754317748261,-628.76732451,0.00035,30]
[377280804,1754317757828,1659.66135,7.945e-05,2]
[377280852,1754317832445,-376.34124151,0.00035,30]
[377280853,1754317832455,-530.72222952,0.00035,90]
[377280854,1754317832467,-2122.48098489,0.00036635,2]
[377280855,1754317832558,-7695.04358991,0.00036635,2]
[377280856,1754317832568,-200.000001,0.0003666,120]
[377280857,1754317832578,-153.21980766,0.00037463,2]
[377280858,1754317832588,-427.06504705,0.00037464,15]
[377280859,1754317832598,-169.23744463,0.00037465,2]
[377280860,1754317832607,-171.49512694,0.00037465,2]
[377280861,1754317832617,-151.18,0.00037555,2]
[377280862,1754317832626,-218.49445257,0.00037555,2]
[377280863,1754317832635,-400.0,0.00037562,2]
[377280864,1754317832645,-500.0,0.00037563,15]
[377280867,1754317832654,-500.0,0.00037563,15]
[377280868,1754317832664,-500.0,0.00037563,15]
[377280870,1754317832674,-309.79488284,0.00037563,15]
[377280872,1754317832683,-211.425049,0.00037564,10]
[377280875,1754317832693,-211.425049,0.00037564,30]
[377280876,1754317832702,-24797.88914944,0.00037565,2]
[377280878,1754317832725,-384.42606901,0.00037565,2]
[377280886,1754317835641,279.27,0.00028,2]
[377280887,1754317837487,-441.75697903,0.00036873,120]
[377280891,1754317838358,-1158.24302097,0.00036873,120]
[377280892,1754317838368,-5433.98261365,0.00037465,2]
[377280893,1754317838378,-196.05850044,0.00037564,15]
[377280894,1754317838388,-449.57306611,0.00037564,15]
[377280895,1754317838398,-167191.04689026,0.00037565,2]
[377280896,1754317838412,-3347.16339072,0.00037565,2]
[377280897,1754317838422,-1588.60479165,0.00037565,10]
[377280898,1754317838432,-52839.68787919,0.00037565,2]
[377280899,1754317838482,-3199.048,0.00037565,2]
[377280900,1754317838584,-56821.69439822,0.00037565,2]
[377280901,1754317838594,-717.47329067,0.00037565,10]
[377280902,1754317838604,-67698.27992422,0.00037565,30]
[377280903,1754317838614,-40188.54016509,0.00037565,10]
[377280904,1754317838625,-4096.6436192,0.00037565,2]
[377280905,1754317838635,-217893.47592192,0.00037565,2]
[377280906,1754317838644,-15000.0,0.00037565,6]
[377280907,1754317838654,-2289.36473249,0.00037565,10]
[377280908,1754317838664,-2315.18141591,0.00037565,10]
[377280909,1754317838674,-1000.0,0.00037565,10]
[377280910,1754317838684,-4992.45530491,0.00037565,2]
[377280911,1754317838694,-5844.67171915,0.00037565,2]
[377280912,1754317838704,-500.0,0.00037565,10]
[377280914,1754317838714,-1604.62490059,0.00037565,2]
[377280916,1754317838724,-1232.26249925,0.00037565,2]
[377280918,1754317838733,-171060.28749783,0.00037565,2]
[377280920,1754317838743,-15048.10270247,0.00037565,2]
[377280922,1754317838752,-6000.0,0.00037565,2]
[377280924,1754317838763,-1481.44501991,0.00037565,2]
[377280926,1754317838773,-3079.68059975,0.00037565,2]
[377280929,1754317838787,-3349.7824339,0.00037565,2]
[377280930,1754317838798,-7827.27146799,0.00037565,2]
[377280932,1754317838807,-374.12499089,0.00037565,120]
[377280935,1754317838817,-124370.2824554,0.00037565,2]
[377280937,1754317838827,-6513.34661239,0.00037565,2]
[377280939,1754317838837,-227.61119961,0.00037565,15]
[377280941,1754317838847,-2500.0,0.00037565,2]
[377280943,1754317838856,-1885.79374774,0.00037565,2]
[377280945,1754317838866,-1717.16931209,0.00037565,2]
[377280947,1754317838876,-340.1994762,0.00037565,120]
[377280950,1754317838886,-1599.34580377,0.00037565,2]
[377280953,1754317838896,-3152.30434,0.00037565,2]
[377280956,1754317838906,-4960.36760744,0.00037565,10]
[377280959,1754317838916,-5044.01945447,0.00037565,2]
[377280962,1754317838927,-277.47986173,0.00037565,10]
[377280965,1754317838937,-2221.04064866,0.00037565,2]
[377280969,1754317838947,-713.39790865,0.00037565,10]
[377280971,1754317838957,-70933.9298068,0.00037565,30]
[377280973,1754317838968,-1850.64776874,0.00037565,2]
[377280975,1754317838978,-6837.45492147,0.00037565,4]
[377280977,1754317838988,-14999.999999,0.00037565,30]
[377280979,1754317838998,-18823.69326894,0.00037565,30]
[377280981,1754317839009,-590236.16552696,0.00037565,30]
[377280983,1754317839019,-14098.13277441,0.00037565,30]
[377280985,1754317839028,-2341.2963979,0.00037565,7]
[377280987,1754317839038,-11658.68113838,0.00037565,30]
[377280989,1754317839048,-1719.74607388,0.00037565,2]
[377280991,1754317839059,-19613.15211004,0.00037565,2]
[377280994,1754317839068,-3071.09500387,0.00037565,2]
[377280996,1754317839078,-4618.03194507,0.00037565,2]
[377280998,1754317839088,-2190.42492388,0.00037565,2]
[377281000,1754317839098,-526.0,0.00037565,2]
[377281002,1754317839107,-14521.39262513,0.00037565,30]
[377281004,1754317839118,-115833.99338062,0.00037565,2]
[377281006,1754317839128,-161.59239393,0.00037573,5]
[377281008,1754317839138,-553.45191791,0.00037573,3]
[377281010,1754317839147,-207.68,0.000376,30]
[377281012,1754317839157,-3287.16,0.000376,14]
[377281014,1754317839167,-434.62,0.00037707,2]
[377281016,1754317839176,-1161.09324105,0.000379,37]
[377281018,1754317839186,-1161.09324078,0.00038279,38]
[377281020,1754317839196,-1873.26034089,0.00038336,2]
[377281022,1754317839206,-155.69583994,0.000386,60]
[377281024,1754317839216,-1161.09324078,0.00038659,39]
[377281026,1754317839227,-235.4,0.00038696,15]
[377281028,1754317839236,-253.0,0.00038731,2]
[377281030,1754317839246,-39906.08444778,0.000389,7]
[377281032,1754317839256,-427.06504696,0.00038922,15]
[377281034,1754317839266,-1161.09324078,0.00039038,39]
[377281037,1754317839276,-1161.09324078,0.00039417,40]
[377281039,1754317839286,-434.62,0.00039437,2]
[377281041,1754317839296,-169.23744463,0.0003955,2]
[377281042,1754317839306,-1161.09324078,0.00039797,41]
[377281044,1754317839316,-151.18,0.00039989,2]
[377281046,1754317839326,-10574.06949948,0.00039999,2]
[377281049,1754317839336,-460.0,0.0004,120]
[377281051,1754317839346,-200.0,0.0004,14]
[377281053,1754317839356,-595.1334,0.0004,120]
[377281055,1754317839366,-207.68,0.0004,30]
[377281057,1754317839376,-1523.50262944,0.0004,2]
[377281059,1754317839386,-464.04557269,0.0004,2]
[377281061,1754317839396,-192134.52739819,0.0004,120]
[377281063,1754317839406,-235.4,0.00040087,15]
[377281065,1754317839415,-3287.16,0.000401,14]
[377281067,1754317839425,-478.0,0.00040168,5]
[377281069,1754317839435,-1161.09324078,0.00040176,42]
[377281071,1754317839445,-427.06504696,0.00040381,15]
[377281073,1754317839454,-1161.09324078,0.00040555,42]
[377281075,1754317839465,-3630.14,0.00040786,2]
[377281077,1754317839478,-1161.09324078,0.00040934,43]
[377281079,1754317839488,-1929.21757971,0.00041,120]
[377281081,1754317839498,-2250.39811378,0.00041,7]
[377281083,1754317839510,-500.0,0.00041,5]
[377281085,1754317839520,-500.0,0.00041,5]
[377281087,1754317839530,-255.36358075,0.00041071,5]
[377281089,1754317839540,-500.0,0.00041071,5]
[377281091,1754317839552,-500.0,0.00041071,5]
[377281093,1754317839563,-500.0,0.00041071,5]
[377281095,1754317839572,-500.71859585,0.00041071,5]
[377281097,1754317839582,-575.82222738,0.00041071,5]
[377281099,1754317839592,-500.0,0.00041071,5]
[377281101,1754317839602,-500.0,0.00041071,5]
[377281103,1754317839612,-500.0,0.00041071,5]
[377281105,1754317839622,-200.0,0.00041096,20]
[377281107,1754317839633,-200.0,0.00041096,20]
[377281110,1754317839644,-434.62,0.00041168,120]
[377281112,1754317839654,-1161.09324078,0.00041314,44]
[377281114,1754317839664,-1000.0,0.00041323,30]
[377281116,1754317839675,-1000.0,0.00041323,30]
[377281118,1754317839684,-1000.0,0.00041323,30]
[377281120,1754317839694,-1000.0,0.00041323,30]
[377281122,1754317839704,-1000.0,0.00041323,30]
[377281124,1754317839713,-1000.0,0.00041323,30]
[377281126,1754317839723,-1000.0,0.00041323,30]
[377281128,1754317839733,-1000.0,0.00041323,30]
[377281130,1754317839742,-1000.0,0.00041323,30]
[377281132,1754317839752,-1000.0,0.00041323,30]
[377281134,1754317839762,-1000.0,0.00041323,30]
[377281136,1754317839772,-1000.0,0.00041323,30]
[377281138,1754317839781,-1000.0,0.00041323,30]
[377281140,1754317839791,-1000.0,0.00041323,30]
[377281142,1754317839801,-629.0,0.00041323,30]
[377281144,1754317839810,-543.22199256,0.000414,10]
[377281146,1754317839821,-235.4,0.00041477,120]
[377281148,1754317839831,-1600.0,0.00041482,120]
[377281150,1754317839841,-1000.0,0.00041548,10]
[377281152,1754317839851,-1000.0,0.00041619,10]
[377281154,1754317839860,-1000.0,0.00041619,10]
[377281156,1754317839870,-1000.0,0.00041619,10]
[377281158,1754317839879,-1000.0,0.00041619,10]
[377281160,1754317839889,-1124.28853107,0.00041619,10]
[377281162,1754317839898,-169.23744463,0.00041635,120]
[377281164,1754317839908,-428.85697148,0.00041667,120]
[377281167,1754317839919,-1161.09324078,0.00041693,45]
[377281169,1754317839929,-427.06504696,0.00041839,15]
[377281171,1754317839939,-160.0,0.00042,21]
[377281173,1754317839950,-160.0,0.00042,29]
[377281175,1754317839959,-376.21225651,0.00042,120]
[377281177,1754317839970,-1343.9261603,0.0004201,2]
[377281179,1754317839980,-1161.09324078,0.00042072,45]
[377281181,1754317839990,-207.68,0.000421,30]
[377281183,1754317840000,-3287.16,0.000421,14]
[377281185,1754317840010,-457.2201239,0.0004212,2]
[377281187,1754317840020,-2500.0,0.0004212,10]
[377281189,1754317840031,-1000.0,0.00042127,2]
[377281191,1754317840040,-382.633,0.00042176,63]
[377281193,1754317840050,-23900.0,0.00042185,2]
[377281195,1754317840060,-3600.0,0.000422,2]
[377281197,1754317840069,-526.77461878,0.00042425,10]
[377281199,1754317840079,-500.46973082,0.00042425,10]
[377281201,1754317840089,-500.0,0.00042425,10]
[377281203,1754317840098,-431.81146785,0.00042425,10]
[377281205,1754317840108,-1161.09324078,0.00042452,46]
[377281207,1754317840118,-1161.09324078,0.00042831,47]
[377281209,1754317840128,-235.4,0.00042867,120]
[377281211,1754317840138,-434.62,0.00042898,120]
[377281213,1754317840147,-874.49410911,0.00042973,10]
[377281215,1754317840157,-540.91261759,0.00043,30]
[377281217,1754317840167,-160.0,0.00043,48]
[377281219,1754317840178,-160.0,0.00043,48]
[377281221,1754317840188,-152.37459447,0.00043,120]
[377281224,1754317840198,-187.16,0.00043055,2]
[377281226,1754317840208,-250.0,0.00043188,120]
[377281228,1754317840218,-1161.09324078,0.0004321,48]
[377281230,1754317840229,-150.0,0.00043226,2]
[377281233,1754317840238,-150.0,0.00043226,120]
[377281235,1754317840248,-273.42,0.00043228,2]
[377281237,1754317840259,-152.23,0.0004327,2]
[377281239,1754317840269,-500.0,0.00043276,2]
[377281241,1754317840279,-1000.0,0.00043277,2]
[377281243,1754317840288,-427.06504696,0.00043298,15]
[377281245,1754317840298,-152.23,0.00043325,2]
[377281247,1754317840307,-152.23,0.00043379,2]
[377281249,1754317840317,-172.51,0.000434,2]
[377281251,1754317840327,-152.23,0.00043433,2]
[377281253,1754317840336,-152.23,0.00043487,2]
[377281255,1754317840346,-152.23,0.00043541,2]
[377281257,1754317840356,-1161.09324078,0.0004359,48]
[377281259,1754317840367,-152.23,0.00043595,2]
[377281261,1754317840376,-152.23,0.00043649,2]
[377281263,1754317840386,-207.68,0.000437,30]
[377281266,1754317840396,-3287.16,0.000437,14]
[377281268,1754317840407,-152.23,0.00043703,2]
[377281270,1754317840417,-169.23744463,0.0004372,120]
[377281272,1754317840427,-1161.09324078,0.00043969,49]
[377281274,1754317840437,-160.0,0.00044,72]
[377281276,1754317840447,-160.0,0.00044,72]
[377281278,1754317840457,-652.46739545,0.00044,120]
[377281280,1754317840470,-206.86235254,0.00044,120]
[377281282,1754317840483,-547.1938562,0.00044,120]
[377281284,1754317840492,-449.1960482,0.00044,120]
[377281286,1754317840502,-153.00328513,0.0004425,120]
[377281288,1754317840515,-235.4,0.00044258,120]
[377281290,1754317840525,-308.0,0.000443,120]
[377281292,1754317840534,-5199.07,0.00044319,2]
[377281294,1754317840544,-466.17,0.00044319,2]
[377281296,1754317840556,-9999.99,0.00044319,2]
[377281298,1754317840567,-499.99,0.00044319,2]
[377281300,1754317840577,-150.99,0.00044319,30]
[377281302,1754317840586,-299.99,0.00044319,120]
[377281304,1754317840596,-150.99,0.00044319,2]
[377281307,1754317840606,-1161.09324078,0.00044348,50]
[377281308,1754317840615,-293.53544314,0.0004439,120]
[377281311,1754317840625,-434.62,0.00044628,120]
[377281313,1754317840637,-1161.09324078,0.00044728,51]
[377281315,1754317840646,-427.06504696,0.00044756,15]
[377281317,1754317840656,-200.0,0.000449,16]
[377281319,1754317840665,-216.0,0.00045,120]
[377281321,1754317840675,-17274.62305153,0.00045,100]
[377281323,1754317840684,-30214.80104593,0.00045,2]
[377281325,1754317840694,-486.06739081,0.00045,120]
[377281327,1754317840704,-371.80953503,0.00045,120]
[377281329,1754317840715,-7537.57201937,0.00045,120]
[377281331,1754317840725,-524.48524192,0.00045,120]
[377281333,1754317840735,-209.95833796,0.00045,120]
[377281335,1754317840744,-1863.33514451,0.00045,120]
[377281337,1754317840754,-264.28950242,0.00045,120]
[377281339,1754317840766,-516.7055503,0.00045,120]
[377281341,1754317840775,-223.33369091,0.00045,120]
[377281343,1754317840785,-1168.5420667,0.00045,120]
[377281345,1754317840795,-505.22807118,0.00045,120]
[377281347,1754317840804,-1080.07696159,0.00045,30]
[377281349,1754317840815,-597.2141027,0.00045,10]
[377281351,1754317840824,-2096.60836088,0.00045,120]
[377281353,1754317840834,-536.66,0.00045077,30]
[377281355,1754317840842,-1161.09324078,0.00045107,51]
[377281357,1754317840852,-2491.25,0.00045125,2]
[377281359,1754317840861,-4000.0,0.00045198,8]
[377281361,1754317840871,-3883.0242,0.00045228,2]
[377281363,1754317840880,-160.19,0.000453,3]
[377281365,1754317840890,-15000.0,0.000453,90]
[377281367,1754317840899,-500.0,0.0004541,2]
[377281370,1754317840908,-500.0,0.0004541,2]
[377281372,1754317840919,-500.0,0.0004541,2]
[377281374,1754317840928,-500.0,0.0004541,2]
[377281376,1754317840938,-545.76809848,0.0004541,2]
[377281378,1754317840947,-1161.09324078,0.00045486,52]
[377281380,1754317840957,-865.59667554,0.000455,120]
[377281382,1754317840966,-979.93954772,0.000455,120]
[377281384,1754317840976,-508.0,0.00045546,10]
[377281386,1754317840986,-519.0,0.00045546,10]
[377281388,1754317840996,-517.0,0.00045546,10]
[377281390,1754317841006,-200.0,0.00045629,2]
[377281392,1754317841018,-158.22,0.00045646,120]
[377281394,1754317841028,-235.4,0.00045648,120]
[377281396,1754317841038,-4022.22,0.00045664,120]
[377281398,1754317841048,-169.23744463,0.00045805,120]
[377281400,1754317841058,-1161.09324078,0.00045866,53]
[377281402,1754317841071,-1331.32324905,0.000459,120]
[377281404,1754317841080,-404.78857692,0.000459,120]
[377281406,1754317841090,-500.0,0.00045973,10]
[377281408,1754317841102,-50000.0,0.00046,46]
[377281410,1754317841116,-151.01,0.00046,120]
[377281412,1754317841125,-162.12485,0.00046,7]
[377281414,1754317841134,-1145.88850337,0.00046,2]
[377281416,1754317841145,-673.92303232,0.00046,120]
[377281418,1754317841155,-799.75991765,0.00046,120]
[377281420,1754317841165,-1000.0,0.00046,30]
[377281422,1754317841175,-404.6,0.00046,120]
[377281424,1754317841184,-449.34,0.00046,120]
[377281426,1754317841193,-449.22,0.00046,120]
[377281428,1754317841203,-266.0,0.00046,120]
[377281430,1754317841212,-285.61150812,0.00046059,2]
[377281432,1754317841221,-1600.0,0.00046091,120]
[377281434,1754317841230,-404.6,0.000461,120]
[377281437,1754317841240,-449.22,0.000461,120]
[377281439,1754317841249,-449.22,0.000461,120]
[377281441,1754317841260,-500.0,0.00046173,10]
[377281443,1754317841270,-404.6,0.000462,120]
[377281445,1754317841280,-449.22,0.000462,120]
[377281447,1754317841290,-449.22,0.000462,120]
[377281449,1754317841299,-155.55555554,0.000462,120]
[377281451,1754317841308,-427.06504696,0.00046215,15]
[377281453,1754317841318,-508.0,0.00046234,10]
[377281455,1754317841327,-1161.09324078,0.00046245,54]
[377281457,1754317841337,-151.0,0.00046255,14]
[377281459,1754317841347,-151.0,0.00046255,14]
[377281461,1754317841356,-151.0,0.00046255,14]
[377281463,1754317841366,-151.0,0.00046255,14]
[377281465,1754317841376,-151.0,0.00046255,14]
[377281467,1754317841386,-151.0,0.00046255,14]
[377281469,1754317841395,-157.581139,0.00046255,14]
[377281471,1754317841405,-157.581139,0.00046255,14]
[377281473,1754317841415,-151.0,0.00046255,14]
[377281475,1754317841424,-151.0,0.00046265,14]
[377281477,1754317841434,-151.0,0.00046265,14]
[377281479,1754317841444,-162.74,0.00046286,2]
[377281481,1754317841453,-151.0,0.0004629,14]
[377281483,1754317841463,-151.0,0.0004629,14]
[377281486,1754317841482,-1070.203621,0.0004629,14]
[377281488,1754317841492,-1070.203621,0.0004629,14]
[377281490,1754317841501,-1070.203621,0.0004629,14]
[377281492,1754317841514,-1070.203621,0.0004629,14]
[377281494,1754317841524,-151.0,0.0004629,14]
[377281496,1754317841534,-151.0,0.0004629,14]
[377281498,1754317841544,-151.0,0.0004629,14]
[377281500,1754317841554,-151.0,0.0004629,14]
[377281502,1754317841564,-151.0,0.0004629,14]
[377281523,1754317841869,-196.495079,0.0004629,14]
[377281525,1754317841880,-196.495079,0.0004629,14]
[377281527,1754317841890,-196.495079,0.0004629,14]
[377281529,1754317841900,-196.495079,0.0004629,14]
[377281531,1754317841910,-151.0,0.0004629,14]
[377281533,1754317841920,-151.0,0.0004629,14]
[377281535,1754317841930,-593.72306,0.0004629,14]
[377281537,1754317841939,-593.72306,0.0004629,14]
[377281539,1754317841949,-151.0,0.0004629,14]
[377281541,1754317841959,-151.0,0.0004629,14]
[377281543,1754317841969,-151.0,0.00046299,14]
[377281545,1754317841979,-151.0,0.00046299,14]
[377281547,1754317841989,-151.0,0.00046299,14]
[377281549,1754317841999,-593.72306,0.00046299,14]
[377281551,1754317842009,-593.72306,0.00046299,14]
[377281553,1754317842018,-404.6,0.000463,120]
[377281555,1754317842028,-449.22,0.000463,120]
[377281557,1754317842040,-449.22,0.0004632,120]
[377281559,1754317842049,-1011.62402342,0.0004633,58]
[377281561,1754317842059,-19631.11574,0.0004634,3]
[377281563,1754317842068,-150.0,0.00046349,2]
[377281565,1754317842078,-151.0,0.0004635,14]
[377281567,1754317842087,-152.950807,0.0004635,14]
[377281569,1754317842098,-151.0,0.0004635,14]
[377281571,1754317842108,-1070.203621,0.0004635,14]
[377281573,1754317842117,-1070.203621,0.0004635,14]
[377281575,1754317842127,-151.0,0.0004635,14]
[377281577,1754317842138,-151.0,0.0004635,14]
[377281579,1754317842148,-151.0,0.0004635,14]
[377281581,1754317842159,-151.0,0.0004635,14]
[377281583,1754317842169,-151.0,0.0004635,14]
[377281585,1754317842180,-211.033082,0.0004635,14]
[377281587,1754317842191,-151.0,0.0004635,14]
[377281589,1754317842202,-151.0,0.0004635,14]
[377281591,1754317842212,-151.0,0.0004635,14]
[377281593,1754317842222,-151.0,0.0004635,14]
[377281595,1754317842232,-151.0,0.0004635,14]
[377281597,1754317842242,-196.495079,0.0004635,14]
[377281599,1754317842252,-196.495079,0.0004635,14]
[377281601,1754317842263,-515.778822,0.0004635,14]
[377281603,1754317842272,-151.0,0.0004635,14]
[377281605,1754317842282,-515.778822,0.0004635,14]
[377281607,1754317842292,-151.629707,0.0004635,14]
[377281609,1754317842302,-593.72306,0.0004635,14]
[377281611,1754317842312,-593.72306,0.0004635,14]
[377281613,1754317842322,-157.581139,0.0004635,14]
[377281616,1754317842332,-157.581139,0.0004635,14]
[377281617,1754317842342,-151.0,0.0004635,14]
[377281620,1754317842351,-153.139476,0.0004635,14]
[377281622,1754317842361,-434.62,0.00046359,120]
[377281624,1754317842371,-666.0,0.00046382,3]
[377281625,1754317842380,-151.0,0.00046385,14]
[377281628,1754317842390,-151.0,0.00046385,14]
[377281630,1754317842400,-515.778822,0.00046385,14]
[377281632,1754317842409,-515.778822,0.00046385,14]
[377281634,1754317842419,-151.937112,0.0004639,14]
[377281636,1754317842429,-859.346907,0.0004639,14]
[377281638,1754317842440,-151.0,0.0004639,14]
[377281640,1754317842452,-151.0,0.0004639,14]
[377281642,1754317842463,-151.0,0.0004639,14]
[377281644,1754317842475,-151.0,0.0004639,14]
[377281646,1754317842485,-151.0,0.0004639,14]
[377281648,1754317842494,-151.0,0.0004639,14]
[377281650,1754317842504,-196.495079,0.0004639,14]
[377281652,1754317842516,-196.495079,0.0004639,14]
[377281654,1754317842526,-151.0,0.0004639,14]
[377281656,1754317842535,-157.581139,0.0004639,14]
[377281658,1754317842545,-157.581139,0.0004639,14]
[377281660,1754317842556,-151.0,0.0004639,14]
[377281662,1754317842566,-404.6,0.000464,120]
[377281664,1754317842575,-449.22,0.000464,120]
[377281666,1754317842585,-449.22,0.000464,120]
[377281668,1754317842595,-513.56151364,0.000464,120]
[377281670,1754317842604,-755.15705471,0.000464,120]
[377281672,1754317842615,-151.0,0.0004642,14]
[377281674,1754317842624,-151.0,0.0004642,14]
[377281676,1754317842634,-593.72306,0.0004642,14]
[377281678,1754317842644,-593.72306,0.0004642,14]
[377281680,1754317842657,-404.6,0.000465,120]
[377281682,1754317842666,-449.22,0.000465,120]
[377281684,1754317842676,-1216.7759047,0.00046559,120]
[377281686,1754317842686,-200.0,0.00046575,120]
[377281688,1754317842696,-404.6,0.000466,120]
[377281690,1754317842706,-449.22,0.000466,120]
[377281692,1754317842716,-1161.09324078,0.00046624,54]
[377281695,1754317842726,-1070.203621,0.00046677,14]
[377281696,1754317842735,-1070.203621,0.00046677,14]
[377281698,1754317842745,-151.0,0.00046677,14]